bitfinex/quotes_SOLUSD_20240628
["timestamp","ask_amount","ask_price","bid_price","bid_amount"]
[1719593324168,3.84237285,142.05,141.87,124.6695]
[1719593324539,21.12,142.04,141.87,124.6695]
[1719593324854,21.12,142.02,141.85,107.0496]
[1719593325058,21.12,142.0,141.87,117.6214]
[1719593325367,21.12,142.0,141.87,124.6699]
[1719593325368,20.0,141.99,141.87,124.6699]
[1719593325549,41.12,141.99,141.87,17.6214]
[1719593325749,41.12,141.99,141.83,146.07]
[1719593326083,41.12,141.99,141.84,7.05]
[1719593326237,41.12,141.99,141.81,7.0513]
[1719593326445,41.12,141.99,141.8,17.6304]
[1719593326675,21.12,141.97,141.8,17.6304]
[1719593326969,21.12,141.95,141.79,260.0]
[1719593327143,21.12,141.93,141.79,260.0]
[1719593327341,21.12,141.91,141.77,17.6338]
[1719593327556,21.12,141.89,141.77,17.6338]
[1719593327778,20.0,141.88,141.77,24.6874]
[1719593327951,21.12,141.87,141.73,1.21390782]
[1719593328143,21.12,141.87,141.72,117.6398]
[1719593328355,21.12,141.85,141.73,7.0554]
[1719593328555,20.0,141.84,141.73,7.0554]
[1719593328956,20.0,141.84,141.72,117.6398]
[1719593329162,41.12,141.85,141.73,7.0555]
[1719593329460,20.0,141.85,141.73,7.0556]
[1719593329646,20.0,141.89,141.73,7.0556]
[1719593330078,41.12,141.89,141.76,7.047]
[1719593330281,41.12,141.89,141.76,17.6347]
[1719593330568,41.12,141.89,141.77,7.0535]
[1719593330761,20.0,141.89,141.77,107.0535]
[1719593331068,7.23789227,141.92,141.79,100.0]
[1719593331069,28.35789227,141.92,141.79,100.0]
[1719593331256,28.35789227,141.92,141.8,1.4097788]
[1719593331670,28.35789227,141.92,141.79,100.0]
[1719593331837,28.35789227,141.92,141.79,107.047]
[1719593332370,28.35789227,141.92,141.79,100.0]
[1719593332673,7.23789227,141.92,141.82,7.0511]
[1719593332968,7.23789227,141.92,141.81,100.0]
[1719593332969,257.2,141.99,141.84,7.0497]
[1719593333166,3.02309075,141.99,141.83,100.0]
[1719593333467,3.02309075,141.99,141.85,107.0496]
[1719593333856,46.07,142.03,141.85,124.6731]
[1719593333857,7.23477348,142.02,141.85,124.6731]
[1719593334372,10.25786423,142.02,141.87,100.0]
[1719593334542,10.25786423,142.02,141.89,107.0473]
[1719593334750,21.12,142.02,141.89,117.6187]
[1719593335167,21.12,142.02,141.89,100.0]
[1719593335477,21.12,142.02,141.87,100.0]
[1719593335947,21.12,142.02,141.9,100.0]
[1719593336148,21.12,142.02,141.9,117.6172]
[1719593336461,0.8192821,142.04,141.9,124.6643]
[1719593336777,0.8192821,142.04,141.91,7.047]
[1719593337145,0.8192821,142.04,141.9,100.0]
[1719593337866,0.8192821,142.04,141.88,100.0]
[1719593338569,0.8192821,142.04,141.9,107.0467]
[1719593338750,0.8192821,142.04,141.9,100.0]
[1719593338952,0.8192821,142.04,141.88,17.62]
[1719593338953,21.12,142.03,141.88,100.0]
[1719593339185,20.8192821,142.04,141.88,100.0]
[1719593339186,21.12,142.01,141.88,100.0]
[1719593339480,20.0,142.0,141.88,100.0]
[1719593339844,20.0,142.0,141.9,100.0]
[1719593340044,20.0,142.0,141.87,17.6208]
[1719593340045,0.8192821,142.04,141.92,107.0461]
[1719593340285,0.8192821,142.04,141.9,100.0]
[1719593341565,21.12,142.03,141.88,100.0]
[1719593341748,24.14309075,142.03,141.88,107.048]
[1719593342052,41.12,142.02,141.85,100.0]
[1719593342771,41.12,142.02,141.82,105.68317153]
[1719593342984,41.12,142.02,141.82,100.0]
[1719593343167,21.12,142.0,141.83,37.0502]
[1719593343476,20.0,141.99,141.86,100.0]
[1719593343848,20.0,141.99,141.86,124.6716]
[1719593344054,20.0,141.99,141.86,100.0]
[1719593344055,41.692584,141.99,141.86,100.0]
[1719593344276,41.692584,141.99,141.84,107.0497]
[1719593344577,20.482584,141.99,141.86,100.0]
[1719593344758,19.982584,141.99,141.86,100.0]
[1719593344946,41.192584,141.99,141.86,100.0]
[1719593345573,19.982584,141.99,141.88,100.0]
[1719593345766,19.982584,141.99,141.92,100.0]
[1719593345767,0.482584,141.99,141.92,100.0]
[1719593345945,0.482584,141.99,141.9,107.047]
[1719593346482,0.482584,141.99,141.92,100.0]
[1719593346683,0.482584,141.99,141.9,117.6174]
[1719593346887,0.482584,141.99,141.91,30.0]
[1719593347559,0.482584,141.99,141.93,107.0453]
[1719593347755,0.482584,141.99,141.93,117.6133]
[1719593347972,0.482584,141.99,141.91,130.0]
[1719593348295,0.482584,141.99,141.93,100.0]
[1719593348666,0.482584,141.99,141.94,7.0448]
[1719593348884,0.482584,141.99,141.95,100.0]
[1719593349181,0.482584,141.99,141.98,107.0432]
[1719593349382,0.482584,141.99,141.96,100.0]
[1719593349583,0.482584,141.99,141.97,30.0]
[1719593351071,0.482584,141.99,141.98,100.0]
[1719593351301,0.482584,141.99,141.98,30.0]
[1719593351667,0.482584,141.99,141.91,100.0]
[1719593352173,3.00567475,142.03,141.93,100.0]
[1719593352503,3.00567475,142.03,141.95,117.6113]
[1719593352668,3.00567475,142.03,141.95,107.0444]
[1719593353186,3.00567475,142.03,141.9,46.07]
[1719593353187,3.00567475,142.03,141.97,107.0436]
[1719593353576,3.00567475,142.03,141.97,100.0]
[1719593353780,0.8435241,142.09,141.93,117.6136]
[1719593354080,0.8435241,142.09,141.91,100.0]
[1719593354271,0.8435241,142.09,141.92,37.6151]
[1719593354467,0.8435241,142.09,141.93,100.0]
[1719593355075,0.8435241,142.09,141.93,107.0456]
[1719593355283,22.0535241,142.09,141.93,107.0456]
[1719593355488,20.0,142.08,141.97,100.0]
[1719593355687,20.0,142.08,141.97,107.0436]
[1719593355881,20.0,142.08,141.96,17.6101]
[1719593356086,0.8435241,142.09,141.93,117.6136]
[1719593356277,0.8435241,142.09,141.94,20.0]
[1719593356483,0.8435241,142.09,141.96,7.0441]
[1719593356782,22.0535241,142.09,141.96,7.0441]
[1719593356992,0.8435241,142.09,142.0,100.0]
[1719593357303,0.8435241,142.09,142.02,17.6026]
[1719593357484,0.8435241,142.09,142.0,100.0]
[1719593357681,0.8435241,142.09,142.02,100.0]
[1719593357876,0.8435241,142.09,142.02,107.041]
[1719593358211,0.8435241,142.09,142.0,100.0]
[1719593358618,0.8435241,142.09,142.0,107.0421]
[1719593358777,0.8435241,142.09,142.01,7.0417]
[1719593359178,0.8435241,142.09,142.02,107.0409]
[1719593359378,0.8435241,142.09,142.02,100.0]
[1719593359598,0.8435241,142.09,142.03,0.42943934]
[1719593359995,0.8435241,142.09,142.03,7.46973934]
[1719593360207,0.8435241,142.09,142.03,0.42943934]
[1719593360380,0.8435241,142.09,142.02,107.0411]
[1719593360693,0.8435241,142.09,142.03,7.0405]
[1719593360893,0.8435241,142.09,141.99,106.5546]
[1719593361478,0.8435241,142.09,141.99,113.5972]
[1719593361688,0.8435241,142.09,142.01,100.0]
[1719593361898,0.8435241,142.09,142.03,100.0]
[1719593362120,0.8435241,142.09,142.05,100.0]
[1719593362288,0.8435241,142.09,142.07,100.0]
[1719593362914,0.8435241,142.09,142.06,17.5973]
[1719593362915,0.8435241,142.09,142.08,100.0]
[1719593363098,0.8435241,142.09,142.08,107.0382]
[1719593363522,0.8435241,142.09,142.08,127.0382]
[1719593364225,0.8435241,142.09,142.08,120.0]
[1719593364424,0.8435241,142.09,142.08,127.0382]
[1719593365786,0.0418428,142.18,142.11,107.0364]
[1719593366011,0.0418428,142.18,142.12,7.036]
[1719593366228,0.0418428,142.18,142.09,100.0]
[1719593366402,0.0418428,142.18,142.12,7.0362]
[1719593366722,0.0418428,142.18,142.13,100.0]
[1719593367086,0.0418428,142.18,142.11,107.0367]
[1719593367612,0.0418428,142.18,142.12,20.0]
[1719593367804,0.0418428,142.18,142.13,100.0]
[1719593368324,0.0418428,142.18,142.12,20.0]
[1719593369019,0.0418428,142.18,142.12,120.0]
[1719593369222,0.0418428,142.18,142.17,100.0]
[1719593369398,0.0418428,142.18,142.17,20.0]
[1719593369594,0.8435241,142.24,142.18,7.0333]
[1719593369798,0.8435241,142.24,142.17,120.0]
[1719593369994,0.8435241,142.24,142.2,100.0]
[1719593370216,0.8435241,142.24,142.21,27.0314]
[1719593370421,0.8435241,142.24,142.2,107.0319]
[1719593370731,0.8435241,142.24,142.22,122.815948]
[1719593370898,0.8435241,142.24,142.22,129.847048]
[1719593371924,0.8435241,142.24,142.22,22.815948]
[1719593372094,0.8435241,142.24,142.21,20.0]
[1719593372440,0.8435241,142.24,142.19,20.0]
[1719593372899,0.8435241,142.24,142.19,27.0328]
[1719593373094,0.8435241,142.24,142.19,20.0]
[1719593373319,0.8435241,142.24,142.18,20.0]
[1719593373620,0.8435241,142.24,142.16,20.0]
[1719593373803,0.8435241,142.24,142.18,7.0332]
[1719593374111,0.8435241,142.24,142.17,107.0337]
[1719593374320,0.8435241,142.24,142.17,100.0]
[1719593374821,0.8435241,142.24,142.17,107.0336]
[1719593375022,0.8435241,142.24,142.16,7.0342]
[1719593375328,0.8435241,142.24,142.17,20.0]
[1719593375516,0.8435241,142.24,142.16,20.0]
[1719593375716,0.8435241,142.24,142.16,27.0343]
[1719593376034,0.8435241,142.24,142.17,107.0338]
[1719593376523,0.8435241,142.24,142.16,27.0341]
[1719593376936,0.8435241,142.24,142.17,100.0]
[1719593377156,0.8435241,142.24,142.18,7.0332]
[1719593377435,0.8435241,142.24,142.16,20.0]
[1719593377611,0.8435241,142.24,142.15,100.0]
[1719593377813,0.8435241,142.24,142.14,17.5876]
[1719593378426,0.8435241,142.24,142.11,100.0]
[1719593378640,0.8435241,142.24,142.09,7.047]
[1719593378847,0.8432,142.23,142.08,107.0382]
[1719593379140,0.8432,142.23,142.04,295.2007]
[1719593379141,22.0532,142.23,142.06,123.14706704]
[1719593379323,21.21,142.21,142.06,138.8078]
[1719593379527,20.0,142.2,142.08,117.595]
[1719593379720,20.0,142.2,142.1,7.0369]
[1719593379915,20.0,142.22,142.1,117.5928]
[1719593380134,0.8432,142.23,142.1,117.5928]
[1719593380397,0.8432,142.23,142.12,117.5899]
[1719593380638,0.8432,142.23,142.08,56.4013]
[1719593380639,0.8432,142.23,142.15,7.0343]
[1719593380846,0.8432,142.23,142.14,124.6227]
[1719593381011,0.8432,142.23,142.12,107.0359]
[1719593381214,0.8432,142.23,142.13,20.0]
[1719593381729,0.8432,142.23,142.13,27.0357]
[1719593381934,0.8432,142.23,142.14,100.0]
[1719593382235,0.8435241,142.24,142.14,100.0]
[1719593382410,0.8435241,142.24,142.15,17.5867]
[1719593382611,0.8435241,142.24,142.13,20.0]
[1719593383011,0.8435241,142.24,142.13,27.0358]
[1719593383211,0.8435241,142.24,142.15,7.0347]
[1719593383411,0.8435241,142.24,142.15,107.0347]
[1719593383633,0.8435241,142.24,142.15,100.0]
[1719593383823,0.8435241,142.24,142.15,107.0343]
[1719593384164,0.8435241,142.24,142.13,27.0356]
[1719593384446,0.8435241,142.24,142.13,20.0]
[1719593384648,0.8435241,142.24,142.12,20.0]
[1719593384816,0.8435241,142.24,142.12,27.0362]
[1719593385021,0.8435241,142.24,142.12,120.0]
[1719593385211,0.8435241,142.24,142.12,20.0]
[1719593385417,0.8435241,142.24,142.13,7.0354]
[1719593385616,0.8435241,142.24,142.14,100.0]
[1719593385838,0.8435241,142.24,142.16,7.0339]
[1719593386041,0.8435241,142.24,142.17,7.0337]
[1719593386431,0.8435241,142.24,142.17,7.0336]
[1719593386623,0.8435241,142.24,142.18,100.0]
[1719593387423,0.8435241,142.24,142.14,124.6222]
[1719593387750,0.8435241,142.24,142.16,100.0]
[1719593387917,0.8435241,142.24,142.14,117.5873]
[1719593388238,0.8435241,142.24,142.15,27.0344]
[1719593388442,0.8435241,142.24,142.16,107.0339]
[1719593388648,0.8435241,142.24,142.17,7.0336]
[1719593388831,0.8435241,142.24,142.16,17.5853]
[1719593389024,0.8435241,142.24,142.16,24.6193]
[1719593389225,0.8435241,142.24,142.16,17.5853]
[1719593389454,0.8435241,142.24,142.16,24.6195]
[1719593390143,0.8435241,142.24,142.18,100.0]
[1719593390320,0.8435241,142.24,142.18,117.583]
[1719593390521,0.8435241,142.24,142.21,100.0]
[1719593390721,0.8432,142.28,142.21,100.0]
[1719593390948,0.8432,142.28,142.19,100.0]
[1719593391130,0.8432,142.28,142.2,20.0]
[1719593391460,0.8432,142.28,142.21,100.0]
[1719593391638,0.8432,142.28,142.2,27.032]
[1719593391639,0.8432,142.28,142.2,20.0]
[1719593392358,0.8432,142.28,142.2,120.0]
[1719593392646,0.8432,142.28,142.19,24.6138]
[1719593392869,0.8432,142.28,142.16,124.6325]
[1719593393150,0.8432,142.28,142.17,20.0]
[1719593393358,0.8432,142.28,142.16,100.0]
[1719593393537,42.0532,142.28,142.16,100.0]
[1719593393718,22.0532,142.28,142.16,100.0]
[1719593393921,22.0532,142.28,142.14,24.6228]
[1719593394123,21.21,142.26,142.1,107.0369]
[1719593394338,21.21,142.24,142.1,107.0369]
[1719593394522,21.21,142.24,142.06,27.72666695]
[1719593394523,0.8432,142.23,142.06,27.72666695]
[1719593394740,0.8432,142.23,142.05,124.6385]
[1719593394741,67.1,142.22,142.05,124.6385]
[1719593394932,21.21,142.2,142.05,17.5989]
[1719593395127,21.21,142.18,142.04,7.0402]
[1719593395334,21.21,142.18,142.04,7.0401]
[1719593395638,21.21,142.18,142.06,24.6367]
[1719593395842,41.21,142.21,142.07,7.0386]
[1719593396244,41.21,142.21,142.06,17.5975]
[1719593396245,41.21,142.21,142.06,24.6367]
[1719593396647,41.21,142.21,142.06,17.5975]
[1719593396858,21.21,142.21,142.08,100.0]
[1719593397043,21.21,142.21,142.09,20.0]
[1719593397231,0.8432,142.23,142.1,7.0371]
[1719593397431,20.8432,142.23,142.09,27.0376]
[1719593397735,22.0532,142.23,142.09,20.0]
[1719593398257,0.8432,142.23,142.12,7.036]
[1719593398425,0.8432,142.23,142.11,17.5914]
[1719593398628,0.8432,142.23,142.12,100.0]
[1719593398851,0.8432,142.23,142.12,107.036]
[1719593399058,0.8432,142.3,142.14,117.5874]
[1719593399277,0.8432,142.3,142.15,20.0]
[1719593399647,0.8432,142.3,142.15,27.047]
[1719593399843,22.0532,142.3,142.15,20.0]
[1719593400071,22.0532,142.3,142.1,114.0841]
[1719593400388,0.8432,142.3,142.13,7.0354]
[1719593400550,20.0,142.29,142.12,100.0]
[1719593400751,24.40640599,142.3,142.12,100.0]
[1719593400947,21.21,142.29,142.11,37.5919]
[1719593401147,0.8432,142.26,142.08,100.0]
[1719593401354,21.21,142.23,142.06,100.0]
[1719593401553,21.21,142.21,142.06,100.0]
[1719593401748,45.89,142.24,142.08,100.0]
[1719593401749,41.21,142.2,142.08,100.0]
[1719593401975,20.0,142.2,142.08,107.0382]
[1719593402174,41.21,142.2,142.08,7.0382]
[1719593402375,41.21,142.2,142.06,123.33154271]
[1719593402578,41.21,142.2,142.07,8.44558395]
[1719593402783,41.21,142.2,142.06,105.73414271]
[1719593402953,0.8432,142.19,142.03,117.6012]
[1719593403154,0.8432,142.19,142.03,100.0]
[1719593403881,0.8432,142.19,142.02,24.6436]
[1719593404091,0.8432,142.19,142.0,13.944679]
[1719593404377,22.0532,142.15,141.98,17.6072]
[1719593404580,21.21,142.13,141.98,17.6072]
[1719593404778,21.21,142.13,141.99,100.0]
[1719593405286,22.0532,142.15,142.03,7.0406]
[1719593405574,0.8432,142.15,142.03,100.0]
[1719593405784,0.8432,142.15,142.03,107.0405]
[1719593406152,0.8432,142.15,141.99,17.6064]
[1719593406362,22.0532,142.15,141.99,124.6489]
[1719593406553,41.21,142.14,141.99,117.6064]
[1719593406755,41.21,142.14,142.0,7.0421]
[1719593407192,0.8432,142.15,142.03,100.0]
[1719593407395,0.8432,142.14,141.95,28.202349]
[1719593407688,0.8432,142.07,141.97,30.0]
[1719593407997,0.8432,142.07,141.88,29.0591381]
[1719593407998,21.21,142.03,141.88,29.0591381]
[1719593408360,0.8432,141.99,141.88,29.0591381]
[1719593408558,42.0532,141.99,141.88,29.0591381]
[1719593408758,45.89,141.94,141.88,0.8435241]
[1719593408988,20.0,141.93,141.88,0.0003241]
[1719593409360,47.6827132,141.93,141.88,0.0003241]
[1719593409694,21.21,141.91,141.88,0.0003241]
[1719593409862,6.4727132,141.92,141.75,100.0]
[1719593409863,65.89,141.9,141.75,100.0]
[1719593410058,20.0,141.9,141.76,7.0541]
[1719593410263,20.0,141.9,141.78,100.0]
[1719593410481,20.0,141.91,141.78,107.0527]
[1719593410686,20.0,141.95,141.77,17.6336]
[1719593410894,21.21,141.93,141.77,17.6336]
[1719593411091,20.0,141.92,141.74,25.5363241]
[1719593411285,45.89,141.9,141.74,0.8435241]
[1719593411483,20.0,141.89,141.74,0.8435241]
[1719593411678,45.89,141.86,141.74,0.8435241]
[1719593411875,20.0,141.85,141.74,0.8435241]
[1719593412192,21.21,141.84,141.74,0.8435241]
[1719593412365,20.0,141.85,141.74,0.8435241]
[1719593412566,20.0,141.83,141.74,0.8435241]
[1719593412763,20.0,141.85,141.74,0.8435241]
[1719593413005,20.0,141.85,141.75,0.44796745]
[1719593413170,45.89,141.9,141.76,0.44768304]
[1719593413373,20.0,141.89,141.74,0.8435241]
[1719593413785,20.0,141.89,141.74,20.8435241]
[1719593414187,20.0,141.89,141.75,7.047]
[1719593414373,20.0,141.89,141.74,20.8435241]
[1719593414577,20.0,141.89,141.75,100.0]
[1719593414900,1.21493457,141.93,141.77,100.0]
[1719593415110,74.143098,141.96,141.84,7.0499]
[1719593415405,74.143098,141.96,141.82,100.0]
[1719593415694,74.143098,141.96,141.83,20.0]
[1719593416076,45.89,141.96,141.83,120.0]
[1719593416270,1.21454815,142.0,141.87,100.0]
[1719593416470,45.89,142.03,141.89,117.6192]
[1719593416686,7.68682393,142.08,141.9,1.40796536]
[1719593416913,4.23720148,142.08,141.9,20.0]
[1719593417203,45.89,142.06,141.91,117.6156]
[1719593417384,10.36892208,142.07,141.92,20.0]
[1719593417591,10.36892208,142.07,141.93,107.53398733]
[1719593417982,10.36892208,142.07,141.93,100.48858733]
[1719593417983,21.21,142.06,141.93,100.48858733]
[1719593418176,21.21,142.06,141.92,20.0]
[1719593418489,21.21,142.06,141.91,100.0]
[1719593418691,21.21,142.06,141.92,30.0]
[1719593419074,21.21,142.06,141.93,107.0455]
[1719593419297,3.02309075,142.07,141.94,20.0]
[1719593419497,24.23309075,142.07,141.94,20.0]
[1719593419875,21.21,142.07,141.94,20.0]
[1719593420078,21.21,142.07,141.92,30.0]
[1719593420284,21.21,142.07,141.92,37.0457]
[1719593420585,21.21,142.07,141.93,20.0]
[1719593420780,21.21,142.07,141.92,30.0]
[1719593421302,3.02309075,142.06,141.92,30.0]
[1719593421605,21.21,142.05,141.9,100.0]
[1719593421816,21.21,142.03,141.88,7.048]
[1719593422021,41.21,142.02,141.89,30.0]
[1719593422878,41.21,142.02,141.84,128.223736]
[1719593423072,21.21,141.98,141.8,100.0]
[1719593423295,100.0,142.0,141.78,17.6325]
[1719593423296,21.21,141.94,141.78,124.6856]
[1719593423501,21.21,141.92,141.8,100.0]
[1719593423703,20.0,141.91,141.78,117.6325]
[1719593423910,20.0,141.91,141.78,124.6856]
[1719593424114,20.0,141.91,141.79,7.0525]
[1719593424290,41.21,141.91,141.79,7.0525]
[1719593424486,41.21,141.91,141.8,7.0521]
[1719593424803,41.21,141.91,141.78,17.6325]
[1719593424988,41.21,141.91,141.79,20.0]
[1719593425193,41.21,141.91,141.78,117.6325]
[1719593425440,41.21,141.91,141.79,7.0523]
[1719593425591,41.21,141.91,141.8,7.0518]
[1719593425796,20.0,141.91,141.8,100.0]
[1719593426005,20.0,141.94,141.81,7.0516]
[1719593426207,6.4727132,141.98,141.82,100.0]
[1719593426512,52.3627132,141.99,141.8,100.0]
[1719593426808,21.21,141.94,141.78,100.0]
[1719593427008,21.21,141.94,141.79,20.0]
[1719593427383,21.21,141.94,141.8,7.0521]
[1719593427584,41.21,141.93,141.8,107.0521]
[1719593428107,41.21,141.93,141.79,17.631]
[1719593428423,41.21,141.93,141.78,120.0]
[1719593428711,41.21,141.93,141.79,7.0526]
[1719593428907,41.21,141.93,141.76,100.0]
[1719593429112,41.21,141.93,141.76,107.0537]
[1719593429292,41.21,141.93,141.74,29.0856961]
[1719593429498,47.6827132,141.93,141.77,7.0532]
[1719593429721,47.6827132,141.93,141.78,107.053]
[1719593429883,21.21,141.91,141.75,7.0545]
[1719593430206,45.89,141.92,141.74,0.8435241]
[1719593430207,21.21,141.85,141.74,0.8435241]
[1719593430514,21.21,141.83,141.74,0.8435241]
[1719593430720,21.21,141.81,141.74,0.8435241]
[1719593430891,20.0,141.82,141.68,107.0581]
[1719593430892,20.0,141.8,141.68,107.058]
[1719593431090,20.0,141.8,141.69,7.0572]
[1719593431307,41.21,141.8,141.68,100.0]
[1719593431614,41.21,141.8,141.64,260.0]
[1719593432193,41.21,141.8,141.65,107.0596]
[1719593432390,41.21,141.8,141.65,100.0]
[1719593432612,41.21,141.8,141.65,7.0595]
[1719593433017,41.21,141.8,141.64,284.7097]
[1719593433588,21.21,141.77,141.64,260.0]
[1719593433914,20.0,141.76,141.61,100.0]
[1719593434091,20.0,141.76,141.62,7.061]
[1719593434295,20.0,141.76,141.6,18.4979241]
[1719593435319,20.0,141.76,141.62,7.061]
[1719593435498,20.0,141.76,141.61,100.0]
[1719593435499,20.0,141.76,141.61,7.0616]
[1719593435808,20.0,141.77,141.62,117.6519]
[1719593436018,52.3627132,141.78,141.6,36.1534241]
[1719593436019,6.4727132,141.78,141.65,117.649]
[1719593436186,6.4727132,141.78,141.6,36.1534241]
[1719593436187,45.89,141.82,141.67,100.0]
[1719593436801,13.81664389,141.85,141.7,14.1271]
[1719593437020,324.3,141.89,141.71,107.0562]
[1719593437219,324.3,141.89,141.72,7.0561]
[1719593437390,324.3,141.89,141.73,100.0]
[1719593437391,7.34445064,141.88,141.73,100.0]
[1719593437591,257.2,141.89,141.75,100.0]
[1719593437813,257.2,141.89,141.73,100.0]
[1719593438017,257.2,141.89,141.74,20.0]
[1719593438617,45.89,141.92,141.74,20.0]
[1719593438818,45.89,141.95,141.78,100.0]
[1719593439120,45.89,141.95,141.8,107.0517]
[1719593439296,45.89,141.95,141.8,100.0]
[1719593439500,257.2,142.0,141.83,100.0]
[1719593439692,257.2,142.0,141.85,7.0495]
[1719593439901,47.10407423,142.03,141.86,0.89021799]
[1719593440123,68.31407423,142.03,141.86,0.89021799]
[1719593440331,21.21,142.01,141.86,0.89021799]
[1719593440501,10.36726358,142.02,141.86,0.89021799]
[1719593440813,45.89,142.03,141.87,100.0]
[1719593441020,21.21,142.02,141.84,20.0]
[1719593441220,24.23309075,142.02,141.85,100.0]
[1719593441426,3.02309075,142.02,141.85,100.0]
[1719593441608,3.02309075,142.02,141.87,100.0]
[1719593442125,74.42270671,142.03,141.84,20.0]
[1719593442324,67.1,141.99,141.84,20.0]
[1719593442637,67.1,141.99,141.8,6.2928]
[1719593442937,67.1,141.99,141.76,17.6343]
[1719593442938,67.1,141.93,141.76,28.23728]
[1719593443129,67.1,141.93,141.74,100.0]
[1719593443434,21.21,141.91,141.74,107.055]
[1719593443594,21.21,141.89,141.74,100.0]
[1719593443921,20.0,141.88,141.76,100.0]
[1719593444121,20.0,141.88,141.77,7.0536]
[1719593444323,20.0,141.91,141.76,107.0541]
[1719593444527,45.89,141.89,141.72,100.0]
[1719593444730,20.0,141.88,141.7,100.0]
[1719593445033,21.21,141.87,141.68,107.07]
[1719593445210,67.1,141.85,141.67,24.146]
[1719593445527,21.21,141.83,141.68,100.0]
[1719593445706,41.21,141.82,141.68,107.0577]
[1719593445899,20.0,141.84,141.71,100.0]
[1719593446216,20.0,141.84,141.69,117.6432]
[1719593446217,41.21,141.84,141.69,117.6432]
[1719593446522,41.21,141.84,141.7,7.0571]
[1719593446725,41.21,141.84,141.71,7.0565]
[1719593447027,21.21,141.88,141.74,100.0]
[1719593447201,21.21,141.88,141.75,1.20842064]
[1719593447408,21.21,141.88,141.73,17.6381]
[1719593447604,21.21,141.88,141.74,127.055]
[1719593448223,21.21,141.88,141.68,100.0]
[1719593448431,21.21,141.86,141.7,100.0]
[1719593448604,21.21,141.84,141.7,107.0567]
[1719593448806,20.0,141.83,141.71,7.0565]
[1719593449221,41.21,141.83,141.69,7.0572]
[1719593449730,41.21,141.83,141.7,100.0]
[1719593450315,41.21,141.83,141.69,7.0572]
[1719593450516,41.21,141.83,141.7,100.0]
[1719593451037,41.21,141.83,141.7,107.0571]
[1719593451213,41.21,141.83,141.71,7.0565]
[1719593451531,27.96437987,141.87,141.7,117.6423]
[1719593451713,21.21,141.87,141.73,107.0553]
[1719593451906,21.21,141.87,141.71,100.0]
[1719593452216,21.21,141.87,141.65,100.0]
[1719593452419,21.21,141.85,141.65,100.0]
[1719593452730,21.21,141.83,141.67,7.0585]
[1719593452953,21.21,141.81,141.67,7.0585]
[1719593453106,21.21,141.79,141.65,100.0]
[1719593453305,41.21,141.78,141.64,260.0]
[1719593453506,41.21,141.78,141.62,17.6523]
[1719593453507,21.21,141.78,141.62,17.6523]
[1719593453722,20.0,141.77,141.65,117.649]
[1719593454103,45.89,141.84,141.65,117.649]
[1719593454306,9.76965456,141.83,141.65,24.7085]
[1719593454502,20.0,141.82,141.65,24.7085]
[1719593454726,21.21,141.81,141.65,17.649]